[Event "Early-Titled-Tuesday-Blitz-April-02-2024"]
[Site "Chess.com"]
[Date "2024.04.02"]
[Round "2"]
[White "NowInChess"]
[Black "TitanChess666"]
[Result "0-1"]
[WhiteElo "2264"]
[BlackElo "2515"]
[TimeControl "180+1"]
[EndTime "8:17:16 PDT"]
[Termination "TitanChess666 won on time"]

1. e4 {[%clk 0:03:00.9]} 1... e5 {[%clk 0:03:00]} 2. Nf3 {[%clk 0:03:00.4]} 2...
Nc6 {[%clk 0:03:00.5]} 3. d4 {[%clk 0:03:00.9]} 3... exd4 {[%clk 0:03:00.7]} 4.
Bc4 {[%clk 0:03:01.1]} 4... Nf6 {[%clk 0:02:56.9]} 5. e5 {[%clk 0:03:01.2]} 5...
Ne4 {[%clk 0:02:57]} 6. Bd5 {[%clk 0:02:50.4]} 6... Nc5 {[%clk 0:02:56.8]} 7.
O-O {[%clk 0:02:35.7]} 7... Ne6 {[%clk 0:02:54.1]} 8. Re1 {[%clk 0:02:29.6]}
8... Bc5 {[%clk 0:02:53.4]} 9. c3 {[%clk 0:02:22.2]} 9... dxc3 {[%clk
0:02:52.5]} 10. Nxc3 {[%clk 0:02:23.1]} 10... O-O {[%clk 0:02:51.1]} 11. Ne4
{[%clk 0:02:20.6]} 11... Be7 {[%clk 0:02:50.9]} 12. g3 {[%clk 0:01:59.8]} 12...
d6 {[%clk 0:02:51.3]} 13. exd6 {[%clk 0:01:56.6]} 13... Bxd6 {[%clk 0:02:45.2]}
14. Nfg5 {[%clk 0:01:38.2]} 14... Nxg5 {[%clk 0:02:42.3]} 15. Bxg5 {[%clk
0:01:35]} 15... Be7 {[%clk 0:02:37.6]} 16. Bxc6 {[%clk 0:01:04.1]} 16... Bxg5
{[%clk 0:02:35.5]} 17. Nxg5 {[%clk 0:00:54.9]} 17... Qxg5 {[%clk 0:02:34]} 18.
Bg2 {[%clk 0:00:50.6]} 18... Bg4 {[%clk 0:02:32.9]} 19. Qb3 {[%clk 0:00:45.6]}
19... Rab8 {[%clk 0:02:21.7]} 20. h4 {[%clk 0:00:40]} 20... Qf6 {[%clk
0:02:16.1]} 21. Qa4 {[%clk 0:00:38.6]} 21... Bf3 {[%clk 0:01:57.1]} 22. Bxf3
{[%clk 0:00:31.1]} 22... Qxf3 {[%clk 0:01:57]} 23. Qxa7 {[%clk 0:00:31.7]} 23...
Ra8 {[%clk 0:01:54.4]} 24. Qe3 {[%clk 0:00:31]} 24... Qf6 {[%clk 0:01:54.1]} 25.
Qe5 {[%clk 0:00:22.8]} 25... Qb6 {[%clk 0:01:53]} 26. a3 {[%clk 0:00:15.8]}
26... h6 {[%clk 0:01:52]} 27. Rac1 {[%clk 0:00:15.3]} 27... c6 {[%clk
0:01:50.5]} 28. Qe7 {[%clk 0:00:14.5]} 28... Rad8 {[%clk 0:01:44.7]} 29. b4
{[%clk 0:00:09.2]} 29... Rd2 {[%clk 0:01:44.2]} 30. Re2 {[%clk 0:00:09.5]} 30...
Rfd8 {[%clk 0:01:37.8]} 31. Rce1 {[%clk 0:00:09.1]} 31... Qd4 {[%clk 0:01:32.4]}
32. Re3 {[%clk 0:00:08.3]} 32... b5 {[%clk 0:01:16.8]} 33. Rf3 {[%clk
0:00:07.8]} 33... Qd5 {[%clk 0:01:10.6]} 34. Rf4 {[%clk 0:00:05.3]} 34... Rd1
{[%clk 0:01:04.1]} 35. Rxd1 {[%clk 0:00:04.3]} 35... Qxd1+ {[%clk 0:01:04.9]}
36. Kg2 {[%clk 0:00:04.9]} 36... Qd5+ {[%clk 0:01:02.8]} 37. Kg1 {[%clk
0:00:03.4]} 37... Rd7 {[%clk 0:00:56.4]} 38. Qe8+ {[%clk 0:00:02.7]} 38... Kh7
{[%clk 0:00:57.1]} 39. Qe4+ {[%clk 0:00:03.3]} 39... Qxe4 {[%clk 0:00:57.3]} 40.
Rxe4 {[%clk 0:00:04.2]} 40... Rd3 {[%clk 0:00:55.8]} 41. Rf4 {[%clk 0:00:02.5]}
41... Rxa3 {[%clk 0:00:51.9]} 42. Rxf7 {[%clk 0:00:02.3]} 42... Rc3 {[%clk
0:00:50.9]} 0-1

[Event "Early-Titled-Tuesday-Blitz-April-02-2024"]
[Site "Chess.com"]
[Date "2024.04.02"]
[Round "2"]
[White "IsmaelAmadorGarcia"]
[Black "SilverSwords13"]
[Result "1-0"]
[WhiteElo "2321"]
[BlackElo "2493"]
[TimeControl "180+1"]
[EndTime "8:17:16 PDT"]
[Termination "IsmaelAmadorGarcia won by checkmate"]

1. e4 {[%clk 0:03:00.9]} 1... c5 {[%clk 0:02:57.9]} 2. Nf3 {[%clk 0:03:00.8]}
2... e6 {[%clk 0:02:57.5]} 3. Nc3 {[%clk 0:02:59.4]} 3... Nc6 {[%clk 0:02:57.7]}
4. Be2 {[%clk 0:02:58.2]} 4... Nf6 {[%clk 0:02:57.3]} 5. O-O {[%clk 0:02:57.6]}
5... Qc7 {[%clk 0:02:56.2]} 6. Re1 {[%clk 0:02:57.4]} 6... a6 {[%clk 0:02:56.4]}
7. a4 {[%clk 0:02:56.9]} 7... Be7 {[%clk 0:02:55.7]} 8. h3 {[%clk 0:02:56.4]}
8... O-O {[%clk 0:02:56.1]} 9. d4 {[%clk 0:02:56.3]} 9... cxd4 {[%clk
0:02:56.3]} 10. Nxd4 {[%clk 0:02:57.2]} 10... d6 {[%clk 0:02:54.1]} 11. Be3
{[%clk 0:02:56.4]} 11... Bd7 {[%clk 0:02:54.5]} 12. Nb3 {[%clk 0:02:54]} 12...
b6 {[%clk 0:02:53.7]} 13. f4 {[%clk 0:02:47.9]} 13... Nb4 {[%clk 0:02:44.7]} 14.
Bf3 {[%clk 0:02:44.7]} 14... Bc6 {[%clk 0:02:41]} 15. Qd2 {[%clk 0:02:40.9]}
15... d5 {[%clk 0:02:37.4]} 16. e5 {[%clk 0:02:35.9]} 16... Ne4 {[%clk
0:02:34.7]} 17. Bxe4 {[%clk 0:02:30.7]} 17... dxe4 {[%clk 0:02:35.6]} 18. Qf2
{[%clk 0:02:28.2]} 18... b5 {[%clk 0:02:28.7]} 19. axb5 {[%clk 0:02:05.7]} 19...
axb5 {[%clk 0:02:29.6]} 20. Rxa8 {[%clk 0:02:05.8]} 20... Rxa8 {[%clk
0:02:28.3]} 21. Nd4 {[%clk 0:02:01.5]} 21... Qb7 {[%clk 0:02:05.6]} 22. f5
{[%clk 0:02:00.8]} 22... exf5 {[%clk 0:02:04.7]} 23. Nxf5 {[%clk 0:01:54.2]}
23... Bf8 {[%clk 0:01:59.1]} 24. Rf1 {[%clk 0:01:26.9]} 24... Nd5 {[%clk
0:01:52.7]} 25. Nxd5 {[%clk 0:01:12.9]} 25... Bxd5 {[%clk 0:01:53.6]} 26. Bd4
{[%clk 0:01:01.2]} 26... Qd7 {[%clk 0:01:25.4]} 27. h4 {[%clk 0:00:59]} 27...
Be6 {[%clk 0:01:25.2]} 28. Ng3 {[%clk 0:00:57]} 28... Qd5 {[%clk 0:01:19.6]} 29.
Ne2 {[%clk 0:00:55.1]} 29... Rd8 {[%clk 0:01:12.5]} 30. c3 {[%clk 0:00:54.1]}
30... Qb3 {[%clk 0:00:52.6]} 31. Nf4 {[%clk 0:00:50.4]} 31... Bc4 {[%clk
0:00:53.2]} 32. Re1 {[%clk 0:00:49.7]} 32... Bd3 {[%clk 0:00:46.3]} 33. h5
{[%clk 0:00:43.6]} 33... h6 {[%clk 0:00:45.5]} 34. Ra1 {[%clk 0:00:40.1]} 34...
b4 {[%clk 0:00:44.5]} 35. cxb4 {[%clk 0:00:38.4]} 35... Qxb4 {[%clk 0:00:43.7]}
36. Bc3 {[%clk 0:00:37.9]} 36... Qb5 {[%clk 0:00:40.9]} 37. Kh1 {[%clk
0:00:34.5]} 37... Bc5 {[%clk 0:00:40.7]} 38. Qg3 {[%clk 0:00:34.6]} 38... e3
{[%clk 0:00:39.2]} 39. e6 {[%clk 0:00:33.7]} 39... Bd4 {[%clk 0:00:35]} 40. Bxd4
{[%clk 0:00:27.9]} 40... Rxd4 {[%clk 0:00:35.5]} 41. Ra8+ {[%clk 0:00:28]} 41...
Kh7 {[%clk 0:00:34.5]} 42. exf7 {[%clk 0:00:28.1]} 42... e2 {[%clk 0:00:28]} 43.
Qg6+ {[%clk 0:00:26.6]} 43... Bxg6 {[%clk 0:00:26.8]} 44. hxg6# {[%clk 0:00:27]}
1-0

[Event "Early-Titled-Tuesday-Blitz-April-02-2024"]
[Site "Chess.com"]
[Date "2024.04.02"]
[Round "2"]
[White "karinachess1"]
[Black "kereswasbest"]
[Result "1-0"]
[WhiteElo "2600"]
[BlackElo "2265"]
[TimeControl "180+1"]
[EndTime "8:17:17 PDT"]
[Termination "karinachess1 won by resignation"]

1. d4 {[%clk 0:03:00.9]} 1... d5 {[%clk 0:02:44.1]} 2. c4 {[%clk 0:03:00.7]}
2... e6 {[%clk 0:02:43.9]} 3. Nc3 {[%clk 0:03:00.7]} 3... Be7 {[%clk 0:02:44]}
4. cxd5 {[%clk 0:03:00.9]} 4... exd5 {[%clk 0:02:43.8]} 5. Bf4 {[%clk
0:03:01.6]} 5... Nf6 {[%clk 0:02:44.3]} 6. e3 {[%clk 0:03:01.9]} 6... O-O {[%clk
0:02:44.9]} 7. Bd3 {[%clk 0:03:02.2]} 7... Be6 {[%clk 0:02:44.3]} 8. h3 {[%clk
0:03:00]} 8... c5 {[%clk 0:02:44.8]} 9. Nf3 {[%clk 0:02:59.2]} 9... Nc6 {[%clk
0:02:45.3]} 10. dxc5 {[%clk 0:02:52]} 10... Bxc5 {[%clk 0:02:45]} 11. O-O {[%clk
0:02:52.9]} 11... a6 {[%clk 0:02:44.3]} 12. Ne2 {[%clk 0:02:46.8]} 12... Ne4
{[%clk 0:02:43.1]} 13. Rc1 {[%clk 0:02:44.6]} 13... Ba7 {[%clk 0:02:42.3]} 14.
a3 {[%clk 0:02:32.1]} 14... Rc8 {[%clk 0:02:40.6]} 15. Qa4 {[%clk 0:02:17.1]}
15... Nc5 {[%clk 0:02:35.4]} 16. Qc2 {[%clk 0:02:11.5]} 16... h6 {[%clk
0:02:24.9]} 17. Bh7+ {[%clk 0:02:03.3]} 17... Kh8 {[%clk 0:02:24.5]} 18. Bf5
{[%clk 0:02:03.3]} 18... Qf6 {[%clk 0:02:17.4]} 19. Bxe6 {[%clk 0:01:51.3]}
19... Nxe6 {[%clk 0:02:09.9]} 20. Qb3 {[%clk 0:01:38.5]} 20... Nxf4 {[%clk
0:02:07.1]} 21. Nxf4 {[%clk 0:01:39.4]} 21... d4 {[%clk 0:01:56.1]} 22. Nd5
{[%clk 0:00:51.7]} 22... Qe6 {[%clk 0:01:46.7]} 23. e4 {[%clk 0:00:45.6]} 23...
b5 {[%clk 0:01:25.6]} 24. Qd3 {[%clk 0:00:43.4]} 24... Ne5 {[%clk 0:01:18.2]}
25. Nxe5 {[%clk 0:00:42.7]} 25... Qxe5 {[%clk 0:01:18.9]} 26. f4 {[%clk
0:00:40.3]} 26... Qd6 {[%clk 0:01:15.2]} 27. f5 {[%clk 0:00:19.3]} 27... Rxc1
{[%clk 0:01:09.7]} 28. Rxc1 {[%clk 0:00:19.1]} 28... Bb8 {[%clk 0:01:09.9]} 29.
Kf2 {[%clk 0:00:17.5]} 29... Re8 {[%clk 0:01:02.9]} 30. Re1 {[%clk 0:00:17.1]}
30... Qe5 {[%clk 0:00:54.6]} 31. b3 {[%clk 0:00:15.4]} 31... Rd8 {[%clk
0:00:53.9]} 32. a4 {[%clk 0:00:14.3]} 32... Rxd5 {[%clk 0:00:52.6]} 33. exd5
{[%clk 0:00:13.8]} 33... Qf4+ {[%clk 0:00:41.1]} 34. Qf3 {[%clk 0:00:14.1]}
34... Qd2+ {[%clk 0:00:38.7]} 35. Re2 {[%clk 0:00:14.7]} 1-0

[Event "Early-Titled-Tuesday-Blitz-April-02-2024"]
[Site "Chess.com"]
[Date "2024.04.02"]
[Round "2"]
[White "Refrigerator1955"]
[Black "Kimkibo"]
[Result "1-0"]
[WhiteElo "1960"]
[BlackElo "2398"]
[TimeControl "180+1"]
[EndTime "8:17:17 PDT"]
[Termination "Refrigerator1955 won by resignation"]

1. e4 {[%clk 0:03:00.9]} 1... c5 {[%clk 0:02:36]} 2. Nf3 {[%clk 0:03:00.1]} 2...
d6 {[%clk 0:02:31.8]} 3. Nc3 {[%clk 0:02:58.7]} 3... Nf6 {[%clk 0:02:30.2]} 4.
d3 {[%clk 0:02:58.1]} 4... g6 {[%clk 0:02:24.8]} 5. g3 {[%clk 0:02:57.7]} 5...
Bg7 {[%clk 0:02:24.5]} 6. Bg2 {[%clk 0:02:57.5]} 6... O-O {[%clk 0:02:24.9]} 7.
O-O {[%clk 0:02:56.9]} 7... Nc6 {[%clk 0:02:25.8]} 8. h3 {[%clk 0:02:44.9]} 8...
e5 {[%clk 0:02:22.6]} 9. Be3 {[%clk 0:02:41.9]} 9... Nd4 {[%clk 0:02:21.8]} 10.
Nd2 {[%clk 0:02:39.7]} 10... h6 {[%clk 0:02:12.2]} 11. f4 {[%clk 0:02:39.2]}
11... Kh7 {[%clk 0:02:11.8]} 12. Kh2 {[%clk 0:02:38.6]} 12... Nd7 {[%clk
0:02:07.6]} 13. Nd5 {[%clk 0:02:37.6]} 13... Nb6 {[%clk 0:02:03.5]} 14. c3
{[%clk 0:02:36.8]} 14... Nxd5 {[%clk 0:01:59.1]} 15. exd5 {[%clk 0:02:35.3]}
15... Nf5 {[%clk 0:01:59.4]} 16. Bg1 {[%clk 0:02:30.5]} 16... Nxg3 {[%clk
0:01:57.9]} 17. Kxg3 {[%clk 0:02:24.5]} 17... exf4+ {[%clk 0:01:57.5]} 18. Kh2
{[%clk 0:02:23.3]} 18... Qg5 {[%clk 0:01:55.5]} 19. Qf3 {[%clk 0:02:09.9]} 19...
Bf5 {[%clk 0:01:44.9]} 20. Ne4 {[%clk 0:02:08.6]} 20... Bxe4 {[%clk 0:01:41.6]}
21. dxe4 {[%clk 0:02:07.6]} 21... Be5 {[%clk 0:01:41.6]} 22. Kh1 {[%clk
0:02:03.3]} 22... f5 {[%clk 0:01:41.6]} 23. exf5 {[%clk 0:01:57.6]} 23... Rxf5
{[%clk 0:01:42.5]} 24. Qg4 {[%clk 0:01:52]} 24... Qf6 {[%clk 0:01:36.9]} 25. Be4
{[%clk 0:01:50.5]} 25... Rg5 {[%clk 0:01:36.4]} 26. Qe6 {[%clk 0:01:40.3]} 26...
Qg7 {[%clk 0:01:29.3]} 27. Rf3 {[%clk 0:01:31]} 27... Rf8 {[%clk 0:01:24.2]} 28.
Bf2 {[%clk 0:01:15.8]} 28... Rf6 {[%clk 0:01:23.1]} 29. Qc8 {[%clk 0:01:13]}
29... Rf8 {[%clk 0:01:21.4]} 30. Qe6 {[%clk 0:01:09.6]} 30... Rf6 {[%clk
0:01:19.6]} 31. Qc8 {[%clk 0:01:08.1]} 31... Rh5 {[%clk 0:01:18.6]} 32. Rg1
{[%clk 0:01:01.5]} 32... Qe7 {[%clk 0:01:15.7]} 33. h4 {[%clk 0:00:47.2]} 33...
b6 {[%clk 0:01:11.2]} 34. Qg4 {[%clk 0:00:46.1]} 34... Kh8 {[%clk 0:00:36.6]}
35. Bxg6 {[%clk 0:00:44.3]} 35... Rxg6 {[%clk 0:00:36.6]} 36. Qxg6 {[%clk
0:00:43.4]} 36... Rxh4+ {[%clk 0:00:37.5]} 37. Bxh4 {[%clk 0:00:40.9]} 37...
Qxh4+ {[%clk 0:00:37.5]} 38. Kg2 {[%clk 0:00:40.3]} 38... Qg5+ {[%clk
0:00:24.6]} 39. Kf1 {[%clk 0:00:35.3]} 1-0

[Event "Early-Titled-Tuesday-Blitz-April-02-2024"]
[Site "Chess.com"]
[Date "2024.04.02"]
[Round "2"]
[White "chito89"]
[Black "vladgoncharov"]
[Result "1-0"]
[WhiteElo "2818"]
[BlackElo "2584"]
[TimeControl "180+1"]
[EndTime "8:17:19 PDT"]
[Termination "chito89 won on time"]

1. c4 {[%clk 0:02:59.3]} 1... Nf6 {[%clk 0:02:58.2]} 2. g3 {[%clk 0:02:57.9]}
2... c5 {[%clk 0:02:57.5]} 3. Bg2 {[%clk 0:02:57.2]} 3... Nc6 {[%clk 0:02:57.5]}
4. Nc3 {[%clk 0:02:56.9]} 4... d6 {[%clk 0:02:57.4]} 5. Nf3 {[%clk 0:02:55.9]}
5... g6 {[%clk 0:02:57.6]} 6. d4 {[%clk 0:02:55.4]} 6... cxd4 {[%clk 0:02:57.2]}
7. Nxd4 {[%clk 0:02:56.3]} 7... Bd7 {[%clk 0:02:57]} 8. O-O {[%clk 0:02:53.6]}
8... Bg7 {[%clk 0:02:55.9]} 9. b3 {[%clk 0:02:53.5]} 9... O-O {[%clk 0:02:51.2]}
10. Bb2 {[%clk 0:02:53.2]} 10... Nxd4 {[%clk 0:02:47]} 11. Qxd4 {[%clk
0:02:54.1]} 11... Bc6 {[%clk 0:02:47.1]} 12. Nd5 {[%clk 0:02:54.5]} 12... Bxd5
{[%clk 0:02:44.8]} 13. Bxd5 {[%clk 0:02:53.6]} 13... Nh5 {[%clk 0:02:37]} 14.
Qd2 {[%clk 0:02:52.5]} 14... Bxb2 {[%clk 0:02:36.9]} 15. Qxb2 {[%clk 0:02:53.4]}
15... Rb8 {[%clk 0:02:36.5]} 16. Rfd1 {[%clk 0:02:50.9]} 16... Qc7 {[%clk
0:02:22.7]} 17. Rac1 {[%clk 0:02:45.9]} 17... Nf6 {[%clk 0:02:14.1]} 18. Bf3
{[%clk 0:02:45.7]} 18... a5 {[%clk 0:02:13.2]} 19. h4 {[%clk 0:02:45]} 19... h5
{[%clk 0:01:49.6]} 20. a3 {[%clk 0:02:36.8]} 20... Nd7 {[%clk 0:01:38.8]} 21.
Rd5 {[%clk 0:02:26.6]} 21... Nf6 {[%clk 0:01:28.9]} 22. Rb5 {[%clk 0:02:10.4]}
22... b6 {[%clk 0:01:26.7]} 23. e4 {[%clk 0:01:32.4]} 23... e5 {[%clk
0:01:11.3]} 24. Rd1 {[%clk 0:01:31]} 24... Rfd8 {[%clk 0:00:56.3]} 25. Qe2
{[%clk 0:01:30.6]} 25... Kg7 {[%clk 0:00:52.2]} 26. Qe3 {[%clk 0:01:30.3]} 26...
a4 {[%clk 0:00:45.9]} 27. bxa4 {[%clk 0:01:18.5]} 27... Qxc4 {[%clk 0:00:45]}
28. Rxb6 {[%clk 0:01:18.9]} 28... Qxa4 {[%clk 0:00:27.9]} 29. Rbxd6 {[%clk
0:01:09.4]} 29... Rxd6 {[%clk 0:00:24.7]} 30. Rxd6 {[%clk 0:01:10.3]} 30... Rb3
{[%clk 0:00:20.6]} 31. Rd3 {[%clk 0:01:01.1]} 31... Rb1+ {[%clk 0:00:16.5]} 32.
Kg2 {[%clk 0:01:00.3]} 32... Qc6 {[%clk 0:00:12.1]} 33. Rc3 {[%clk 0:00:48.4]}
33... Qa6 {[%clk 0:00:11.3]} 34. Rc1 {[%clk 0:00:42.6]} 34... Rb2 {[%clk
0:00:09.3]} 35. Qc5 {[%clk 0:00:36.5]} 1-0

[Event "Early-Titled-Tuesday-Blitz-April-02-2024"]
[Site "Chess.com"]
[Date "2024.04.02"]
[Round "2"]
[White "Louis-Paulsen-Fan"]
[Black "Elprofessor21"]
[Result "0-1"]
[WhiteElo "2265"]
[BlackElo "2669"]
[TimeControl "180+1"]
[EndTime "8:17:19 PDT"]
[Termination "Elprofessor21 won by resignation"]

1. d4 {[%clk 0:03:00.9]} 1... Nf6 {[%clk 0:02:59.3]} 2. Nf3 {[%clk 0:03:01.1]}
2... b6 {[%clk 0:02:54.1]} 3. c4 {[%clk 0:03:01.5]} 3... Bb7 {[%clk 0:02:54.1]}
4. Nc3 {[%clk 0:03:02.1]} 4... e6 {[%clk 0:02:54.6]} 5. Bg5 {[%clk 0:03:01.6]}
5... h6 {[%clk 0:02:54]} 6. Bh4 {[%clk 0:03:02]} 6... Bb4 {[%clk 0:02:54.4]} 7.
Qc2 {[%clk 0:03:01.9]} 7... c5 {[%clk 0:02:50.1]} 8. dxc5 {[%clk 0:03:01]} 8...
bxc5 {[%clk 0:02:50]} 9. e3 {[%clk 0:03:00.1]} 9... O-O {[%clk 0:02:44.4]} 10.
Be2 {[%clk 0:02:58.9]} 10... d6 {[%clk 0:02:30.5]} 11. O-O {[%clk 0:02:56.7]}
11... Qe7 {[%clk 0:02:18.5]} 12. Rfd1 {[%clk 0:02:46.9]} 12... Rd8 {[%clk
0:02:06]} 13. Nd2 {[%clk 0:02:42.4]} 13... Bxc3 {[%clk 0:01:54.8]} 14. Qxc3
{[%clk 0:02:36.7]} 14... Nbd7 {[%clk 0:01:53.8]} 15. Qc2 {[%clk 0:02:29.5]}
15... Ne5 {[%clk 0:01:49.1]} 16. a3 {[%clk 0:02:22.4]} 16... a5 {[%clk
0:01:36.7]} 17. h3 {[%clk 0:02:13.7]} 17... a4 {[%clk 0:01:34.9]} 18. Nb1 {[%clk
0:02:08.6]} 18... Bc6 {[%clk 0:01:17.1]} 19. Nc3 {[%clk 0:02:06.6]} 19... Qb7
{[%clk 0:01:16.9]} 20. Bxf6 {[%clk 0:01:54.8]} 20... gxf6 {[%clk 0:01:16.9]} 21.
Bf1 {[%clk 0:01:55]} 21... Kh8 {[%clk 0:01:11.2]} 22. Rd2 {[%clk 0:01:46.7]}
22... Rg8 {[%clk 0:01:07.1]} 23. Rxd6 {[%clk 0:01:12.1]} 23... Bxg2 {[%clk
0:01:00.3]} 24. f3 {[%clk 0:00:44.4]} 24... Bxf1+ {[%clk 0:00:52.8]} 25. Kxf1
{[%clk 0:00:29.2]} 25... Qxf3+ {[%clk 0:00:53]} 26. Qf2 {[%clk 0:00:27.6]} 26...
Qxh3+ {[%clk 0:00:53.3]} 27. Ke1 {[%clk 0:00:23.9]} 27... Nf3+ {[%clk
0:00:52.2]} 28. Ke2 {[%clk 0:00:20.5]} 28... Rg2 {[%clk 0:00:51.8]} 29. Rf1
{[%clk 0:00:16.8]} 29... Rxf2+ {[%clk 0:00:39.5]} 30. Rxf2 {[%clk 0:00:17.7]}
30... Ne5 {[%clk 0:00:30.8]} 31. Rxf6 {[%clk 0:00:17.6]} 31... Rg8 {[%clk
0:00:28.2]} 32. Rf2 {[%clk 0:00:13.8]} 32... Rg2 {[%clk 0:00:25.9]} 33. Ne4
{[%clk 0:00:11.6]} 33... Qg4+ {[%clk 0:00:24.5]} 0-1

[Event "Early-Titled-Tuesday-Blitz-April-02-2024"]
[Site "Chess.com"]
[Date "2024.04.02"]
[Round "2"]
[White "junhaopro"]
[Black "Makswolf200817"]
[Result "0-1"]
[WhiteElo "2559"]
[BlackElo "2750"]
[TimeControl "180+1"]
[EndTime "8:17:20 PDT"]
[Termination "Makswolf200817 won by checkmate"]

1. e4 {[%clk 0:03:00.9]} 1... c5 {[%clk 0:02:59.1]} 2. Nf3 {[%clk 0:03:00.9]}
2... d6 {[%clk 0:02:59.3]} 3. d4 {[%clk 0:03:01]} 3... cxd4 {[%clk 0:02:59.7]}
4. Qxd4 {[%clk 0:03:01.9]} 4... Nc6 {[%clk 0:02:59.4]} 5. Bb5 {[%clk 0:03:02.1]}
5... Bd7 {[%clk 0:03:00.1]} 6. Bxc6 {[%clk 0:03:02.5]} 6... Bxc6 {[%clk
0:03:00.8]} 7. Nc3 {[%clk 0:03:03.2]} 7... Nf6 {[%clk 0:02:46.3]} 8. Bg5 {[%clk
0:03:02.9]} 8... e6 {[%clk 0:02:46.8]} 9. O-O-O {[%clk 0:03:02.8]} 9... Be7
{[%clk 0:02:47.5]} 10. Qd3 {[%clk 0:03:03]} 10... O-O {[%clk 0:02:46.3]} 11. Nd4
{[%clk 0:03:03.3]} 11... Rc8 {[%clk 0:02:32.8]} 12. f4 {[%clk 0:03:02.4]} 12...
Qa5 {[%clk 0:02:28.6]} 13. Kb1 {[%clk 0:02:59.8]} 13... Rfe8 {[%clk 0:02:26.3]}
14. h4 {[%clk 0:02:59.3]} 14... h6 {[%clk 0:02:10.6]} 15. Nb3 {[%clk 0:02:50.2]}
15... Qb4 {[%clk 0:02:07.2]} 16. a3 {[%clk 0:02:41.7]} 16... Qb6 {[%clk
0:02:07]} 17. e5 {[%clk 0:02:11.3]} 17... dxe5 {[%clk 0:01:58.7]} 18. fxe5
{[%clk 0:02:11.4]} 18... Nd5 {[%clk 0:01:59.3]} 19. Ne4 {[%clk 0:01:55.5]} 19...
Bf8 {[%clk 0:01:27.3]} 20. Bc1 {[%clk 0:01:39.1]} 20... Ba4 {[%clk 0:01:16.7]}
21. Qg3 {[%clk 0:01:28.1]} 21... Kh8 {[%clk 0:01:14.6]} 22. Rd3 {[%clk
0:01:19.3]} 22... a5 {[%clk 0:01:08.5]} 23. Rf1 {[%clk 0:01:12.4]} 23... Qc7
{[%clk 0:00:56.2]} 24. Nc3 {[%clk 0:01:05.8]} 24... Bc6 {[%clk 0:00:45.8]} 25.
Nd4 {[%clk 0:00:53]} 25... Red8 {[%clk 0:00:27]} 26. Nxc6 {[%clk 0:00:51.3]}
26... bxc6 {[%clk 0:00:27.7]} 27. Ne4 {[%clk 0:00:49]} 27... Rd7 {[%clk
0:00:27.9]} 28. Rdf3 {[%clk 0:00:39.7]} 28... Nb6 {[%clk 0:00:25]} 29. Bxh6
{[%clk 0:00:28.8]} 29... gxh6 {[%clk 0:00:19.3]} 30. Nf6 {[%clk 0:00:29.1]}
30... Bg7 {[%clk 0:00:19.2]} 31. Nxd7 {[%clk 0:00:29.7]} 31... Nxd7 {[%clk
0:00:18.1]} 32. Rxf7 {[%clk 0:00:29.3]} 32... Qxe5 {[%clk 0:00:18.7]} 33. Qg6
{[%clk 0:00:16.2]} 33... Qxb2# {[%clk 0:00:17.8]} 0-1

[Event "Early-Titled-Tuesday-Blitz-April-02-2024"]
[Site "Chess.com"]
[Date "2024.04.02"]
[Round "2"]
[White "Happy1712Drummer"]
[Black "Incognito_Knight"]
[Result "0-1"]
[WhiteElo "2502"]
[BlackElo "2719"]
[TimeControl "180+1"]
[EndTime "8:17:20 PDT"]
[Termination "Incognito_Knight won by resignation"]

1. e4 {[%clk 0:03:00.9]} 1... c5 {[%clk 0:02:59.6]} 2. Nf3 {[%clk 0:03:00.5]}
2... e6 {[%clk 0:03:00]} 3. c3 {[%clk 0:03:00.3]} 3... d5 {[%clk 0:02:58.5]} 4.
e5 {[%clk 0:03:00.7]} 4... d4 {[%clk 0:02:57.4]} 5. Bd3 {[%clk 0:02:59.8]} 5...
Bd7 {[%clk 0:02:56.3]} 6. O-O {[%clk 0:02:49.1]} 6... Nc6 {[%clk 0:02:41.1]} 7.
Be4 {[%clk 0:02:37.3]} 7... Nge7 {[%clk 0:02:33.9]} 8. d3 {[%clk 0:02:36.4]}
8... Ng6 {[%clk 0:02:31.9]} 9. Nbd2 {[%clk 0:02:36.2]} 9... Ngxe5 {[%clk
0:02:17.5]} 10. Nxe5 {[%clk 0:02:30.1]} 10... Nxe5 {[%clk 0:02:18.4]} 11. cxd4
{[%clk 0:02:28.7]} 11... cxd4 {[%clk 0:02:16.4]} 12. Bxb7 {[%clk 0:02:29.4]}
12... Rb8 {[%clk 0:02:16.5]} 13. Be4 {[%clk 0:02:28.7]} 13... f5 {[%clk
0:02:10.1]} 14. f4 {[%clk 0:01:58.5]} 14... Ng4 {[%clk 0:02:00]} 15. Nc4 {[%clk
0:01:49.2]} 15... Qh4 {[%clk 0:01:13]} 16. h3 {[%clk 0:01:41.4]} 16... fxe4
{[%clk 0:01:12.2]} 17. hxg4 {[%clk 0:01:38.8]} 17... e3 {[%clk 0:01:05.7]} 18.
Qf3 {[%clk 0:01:28.1]} 18... Bc5 {[%clk 0:00:48.3]} 19. Ne5 {[%clk 0:01:22.8]}
19... Bd6 {[%clk 0:00:38.5]} 20. Nxd7 {[%clk 0:00:56.1]} 20... Kxd7 {[%clk
0:00:39.4]} 21. g3 {[%clk 0:00:56.6]} 21... Qh3 {[%clk 0:00:34.5]} 22. b3 {[%clk
0:00:55.6]} 22... Rhc8 {[%clk 0:00:27.9]} 23. Qg2 {[%clk 0:00:38.7]} 23... Qxg2+
{[%clk 0:00:27.9]} 24. Kxg2 {[%clk 0:00:38.6]} 24... Rc3 {[%clk 0:00:28.6]} 25.
Rd1 {[%clk 0:00:34.2]} 25... Rbc8 {[%clk 0:00:19.5]} 26. Kf3 {[%clk 0:00:33.9]}
26... Rc2 {[%clk 0:00:20]} 27. Ke4 {[%clk 0:00:12]} 27... e2 {[%clk 0:00:19.4]}
28. Re1 {[%clk 0:00:12.3]} 28... Bb4 {[%clk 0:00:19.1]} 29. Kxd4 {[%clk
0:00:04]} 29... Bxe1 {[%clk 0:00:17]} 0-1